fUST/lending_fUST_20240402
["ID","MTS","AMOUNT","RATE_DAILY","PERIOD"]
[321279033,1712058636584,-200.0,0.00027899,2]
[321279034,1712058636594,-250.0,0.00028243,2]
[321279036,1712058636604,-177.931304,0.00029421,2]
[321279038,1712058636614,-155.12565178,0.0003,4]
[321279039,1712058636624,-398.88062802,0.0003199,4]
[321279041,1712058636635,-210.36588987,0.000324,2]
[321279043,1712058636646,-210.36588986,0.000324,2]
[321279044,1712058636656,-2765.23050017,0.00032893,2]
[321279045,1712058636666,-311.83459824,0.00032991,4]
[321279046,1712058636676,-324.96396579,0.00032991,2]
[321279047,1712058636685,-354.3470125,0.00032991,4]
[321279048,1712058636695,-306.19473375,0.00032996,4]
[321279049,1712058636704,-3484.86132079,0.00032996,4]
[321279050,1712058636714,-527.72785964,0.00032996,4]
[321279051,1712058636725,-405.73946622,0.00032996,7]
[321279052,1712058636735,-251.19365109,0.00032996,4]
[321279053,1712058636744,-303.51520334,0.00032996,4]
[321279054,1712058636754,-915.50761261,0.00032996,4]
[321279055,1712058636764,-230.2993335,0.00032996,4]
[321279056,1712058636774,-162.54569954,0.00033,4]
[321279057,1712058636784,-161.91887004,0.00033503,6]
[321279058,1712058636794,-2790.68470363,0.00035,4]
[321279078,1712058639033,-185.17273563,0.00026093,2]
[321279079,1712058639043,-271.29502926,0.00026093,2]
[321279080,1712058639052,-4127.02100898,0.00035,4]
[321279081,1712058639062,-667.68349657,0.00035,4]
[321279082,1712058639071,-594.91155692,0.00035,2]
[321279083,1712058639080,-379.88387502,0.00036143,4]
[321279084,1712058639090,-155.76702185,0.00036997,4]
[321279085,1712058639100,-309.7831518,0.00036997,2]
[321279086,1712058639110,-150.395,0.00037701,2]
[321279087,1712058639125,-509.10973844,0.00038356,2]
[321279088,1712058639139,-570.22200904,0.00038699,2]
[321279089,1712058639150,-16480.0,0.00039,2]
[321279090,1712058639158,-1670.300353,0.0003933,2]
[321279091,1712058639191,-7314.44194549,0.00039363,4]
[321279094,1712058639226,-168.623028,0.00039675,2]
[321279095,1712058639237,-192.30275741,0.0003988,2]
[321279096,1712058639246,-2150.62965624,0.000399,2]
[321279097,1712058639255,-11606.18030125,0.0003996,5]
[321279098,1712058639265,-150.5,0.0003997,35]
[321279099,1712058639274,-11829.0,0.0003997,35]
[321279100,1712058639284,-700.0,0.0003997,35]
[321279101,1712058639293,-182.74,0.0003997,35]
[321279102,1712058639302,-170.0,0.0003997,35]
[321279103,1712058639312,-700.0,0.0003997,35]
[321279104,1712058639321,-11829.0,0.0003997,35]
[321279105,1712058639330,-170.0,0.0003997,35]
[321279106,1712058639339,-150.5,0.0003998,35]
[321279107,1712058639349,-11829.0,0.0003998,35]
[321279108,1712058639358,-700.0,0.0003998,35]
[321279109,1712058639368,-150.5,0.0003998,35]
[321279110,1712058639377,-170.0,0.0003998,35]
[321279111,1712058639386,-700.0,0.0003998,35]
[321279112,1712058639397,-11829.0,0.0003998,35]
[321279114,1712058639406,-170.0,0.0003998,35]
[321279115,1712058639415,-700.0,0.0003998,35]
[321279116,1712058639424,-11829.0,0.0003998,35]
[321279117,1712058639433,-170.0,0.0003998,35]
[321279118,1712058639442,-150.5,0.0003999,35]
[321279119,1712058639451,-11829.0,0.0003999,35]
[321279120,1712058639460,-700.0,0.0003999,35]
[321279121,1712058639469,-150.5,0.0003999,35]
[321279122,1712058639478,-170.0,0.0003999,35]
[321279123,1712058639487,-700.0,0.0003999,35]
[321279124,1712058639497,-11829.0,0.0003999,35]
[321279125,1712058639506,-170.0,0.0003999,35]
[321279126,1712058639516,-700.0,0.0003999,35]
[321279127,1712058639525,-11829.0,0.0003999,35]
[321279128,1712058639536,-170.0,0.0003999,35]
[321279129,1712058639545,-155.39569178,0.00039995,4]
[321279131,1712058639554,-6096.98,0.00039996,2]
[321279133,1712058639562,-6096.98,0.00039996,2]
[321279134,1712058639571,-35859.42600499,0.00039997,3]
[321279136,1712058639580,-63072.66393553,0.00039997,2]
[321279138,1712058639592,-1486.50802348,0.00039997,2]
[321279139,1712058639604,-4052.83177612,0.00039997,2]
[321279269,1712058642874,-1129.63467922,0.00026093,2]
[321279271,1712058642884,-649.69321448,0.00039997,2]
[321279410,1712058649797,-754.46501315,0.00039996,4]
[321279411,1712058649810,-2588.68185367,0.00039996,4]
[321279413,1712058649832,-434.23405853,0.00039996,4]
[321279416,1712058649844,-283.09534323,0.00039996,4]
[321279420,1712058649856,-2109.94118566,0.00039996,2]
[321279421,1712058649868,-703.53359432,0.00039996,4]
[321279423,1712058649880,-155.59633533,0.00039996,4]
[321279424,1712058649891,-444.97129573,0.00039996,4]
[321279425,1712058649909,-72823.84767316,0.00039997,2]
[321279429,1712058650182,-4178.96141482,0.00039997,2]
[321279434,1712058655464,-3858.11443194,0.00039957,5]
[321279436,1712058655474,-1050.96728107,0.00039995,4]
[321279438,1712058655484,-277.95113783,0.00039995,4]
[321279440,1712058655493,-852.46310694,0.00039995,4]
[321279442,1712058655502,-2421.41124286,0.00039995,4]
[321279444,1712058655514,-409.34033191,0.00039995,4]
[321279446,1712058655523,-439.36997435,0.00039995,4]
[321279448,1712058655533,-248.79254307,0.00039995,4]
[321279450,1712058655544,-1351.27835854,0.00039995,4]
[321279452,1712058655553,-188.00309929,0.00039995,4]
[321279454,1712058655562,-180.97542058,0.00039995,4]
[321279456,1712058655572,-439.10339985,0.00039996,4]
[321279458,1712058655581,-532.00270844,0.00039996,4]
[321279460,1712058655590,-14830.88132594,0.00039997,2]
[321279462,1712058655602,-1483.23121715,0.00039997,2]
[321279544,1712058876199,2289.95383227,0.000205,5]
[321279553,1712059121514,-277.95113783,0.00032731,4]
[321279554,1712059121543,-444.97129573,0.00032731,4]
[321279555,1712059127802,155.12099438,0.00032731,4]
[321279556,1712059136015,3762.03026945,0.00032731,4]
[321279557,1712059136908,359.92630261,0.00032731,4]
[321279562,1712059708314,263.99946678,0.00028075,7]
[321279621,1712059833744,-326.8183876,0.00027873,2]
[321279622,1712059833754,-538.10383344,0.00027874,2]
[321280081,1712059843245,-155.13030946,0.00027872,2]
[321280083,1712059843255,-155.13030946,0.00027872,2]
[321280084,1712059843264,-923.07219606,0.00027873,2]
[321280086,1712059843275,-240.16900843,0.00027873,2]
[321280088,1712059843284,-396.04457914,0.00027874,2]
[321280089,1712059843294,-206.87506116,0.00027874,2]
[321280090,1712059843303,-1960.01777038,0.00027874,2]
[321280091,1712059843313,-561.53753121,0.00027875,2]
[321280092,1712059843322,-261.32968912,0.00027876,2]
[321280093,1712059843337,-426.31077052,0.00027876,2]
[321280094,1712059843347,-155.13030946,0.00027877,2]
[321280095,1712059843357,-1129.63467922,0.00027877,2]
[321280096,1712059843367,-308.59546846,0.00027878,2]
[321280097,1712059843401,-1261.80361401,0.00027878,2]
[321280098,1712059843411,-304.2987002,0.00027881,2]
[321280099,1712059843422,-300.0,0.00027978,2]
[321280100,1712059843431,-300.0,0.00027978,2]
[321280101,1712059843441,-438.45542868,0.00027981,2]
[321280102,1712059843451,-224.16094477,0.00027981,2]
[321280103,1712059843461,-533.08402959,0.00027982,2]
[321280104,1712059843470,-752.59282409,0.00028075,2]
[321280105,1712059843480,-47498.70765647,0.00028081,2]
[321280106,1712059843489,-330.8321534,0.00028082,2]
[321280107,1712059843499,-7366.60978063,0.00028082,2]
[321280174,1712059847694,-166.71683696,0.00027233,2]
[321280175,1712059847703,-17533.39021937,0.00028082,2]
[321280176,1712059847712,-281.7045139,0.0002909,2]
[321280178,1712059847721,-2479.9832363,0.00029323,2]
[321280180,1712059847731,-2765.23050017,0.00029996,2]
[321280181,1712059847740,-364.50387808,0.00030094,4]
[321280182,1712059847749,-192.4651955,0.00030098,2]
[321280183,1712059847758,-420.0,0.00030217,2]
[321280184,1712059847767,-420.0,0.00030217,2]
[321280185,1712059847776,-380.14800603,0.00030631,2]
[321280186,1712059847786,-2658.5552168,0.0003093,2]
[321280187,1712059847796,-533.08402958,0.00030961,2]
[321280188,1712059847806,-835.150177,0.00031039,2]
[321280189,1712059847815,-250.0,0.00031164,2]
[321280190,1712059847824,-200.0,0.00031265,2]
[321280192,1712059847835,-587.0,0.00032635,2]
[321280193,1712059847844,-587.0,0.00032635,2]
[321280194,1712059847853,-162.54569954,0.00033,4]
[321280195,1712059847863,-533.08402958,0.0003394,2]
[321280196,1712059847873,-831.26285731,0.00034712,4]
[321280197,1712059847882,-1263.81160836,0.00034728,12]
[321280198,1712059847891,-586.0,0.00035247,2]
[321280199,1712059847900,-380.14800603,0.00035631,2]
[321280200,1712059847910,-177.9313062,0.00036571,2]
[321280201,1712059847919,-533.08402958,0.00036918,2]
[321280202,1712059847928,-159.789653,0.00038405,2]
[321280203,1712059847938,-4407.158029,0.00038405,2]
[321280204,1712059847947,-4407.158029,0.00038885,2]
[321280205,1712059847956,-381.34553329,0.00039198,4]
[321280206,1712059847967,-4407.158029,0.00039365,2]
[321280207,1712059847977,-1000.0,0.000398,2]
[321280208,1712059847988,-4407.158029,0.00039845,2]
[321280209,1712059848000,-533.08402958,0.00039897,2]
[321280210,1712059848013,-21439.13663364,0.000399,5]
[321280211,1712059848023,-1935.56669058,0.000399,2]
[321280212,1712059848034,-2366.0,0.0003997,35]
[321280213,1712059848045,-2366.0,0.0003997,35]
[321280214,1712059848055,-150.5,0.0003997,35]
[321280215,1712059848066,-150.5,0.0003997,35]
[321280216,1712059848078,-374.0,0.0003997,35]
[321280217,1712059848088,-249.31,0.0003997,35]
[321280218,1712059848098,-374.0,0.0003997,35]
[321280219,1712059848109,-2366.0,0.0003998,35]
[321280220,1712059848118,-2366.0,0.0003998,35]
[321280221,1712059848129,-2366.0,0.0003998,35]
[321280222,1712059848138,-150.5,0.0003998,35]
[321280223,1712059848149,-150.5,0.0003998,35]
[321280224,1712059848160,-150.5,0.0003998,35]
[321280225,1712059848170,-191.37,0.0003998,35]
[321280226,1712059848181,-374.0,0.0003998,35]
[321280227,1712059848191,-150.5,0.0003998,35]
[321280228,1712059848200,-374.0,0.0003998,35]
[321280229,1712059848209,-374.0,0.0003998,35]
[321280230,1712059848219,-2366.0,0.0003999,35]
[321280231,1712059848229,-2366.0,0.0003999,35]
[321280232,1712059848238,-2366.0,0.0003999,35]
[321280233,1712059848247,-150.5,0.0003999,35]
[321280234,1712059848256,-150.5,0.0003999,35]
[321280235,1712059848266,-150.5,0.0003999,35]
[321280236,1712059848275,-150.5,0.0003999,35]
[321280237,1712059848284,-374.0,0.0003999,35]
[321280238,1712059848293,-150.5,0.0003999,35]
[321280239,1712059848302,-374.0,0.0003999,35]
[321280240,1712059848311,-374.0,0.0003999,35]
[321280241,1712059848321,-9264.98968145,0.0003999,4]
[321280242,1712059848331,-254.36241828,0.00039996,2]
[321280243,1712059848340,-41104.93653284,0.00039997,2]
[321280244,1712059848350,-693.00710774,0.00039997,4]
[321280245,1712059848358,-170.76429043,0.00039997,4]
[321280246,1712059848367,-155.12565178,0.00039997,2]
[321280247,1712059848376,-155.108576,0.00039998,4]
[321280248,1712059848384,-1045.29301704,0.00039998,4]
[321280249,1712059848393,-2799.51,0.00039998,4]
[321280250,1712059848402,-772.28494587,0.00039998,4]
[321280251,1712059848411,-3126.91062043,0.00039998,4]
[321280252,1712059848420,-406.86199423,0.00039998,4]
[321280253,1712059848429,-645.37364718,0.00039998,4]
[321280254,1712059848438,-324.96396579,0.00039998,2]
[321280255,1712059848446,-303.51520334,0.00039998,4]
[321280256,1712059848456,-1667.50669118,0.00039998,4]
[321280257,1712059848464,-230.2993335,0.00039998,4]
[321280258,1712059848474,-354.3470125,0.00039998,4]
[321280259,1712059848483,-306.19473375,0.00039998,4]
[321280260,1712059848551,-398.88062802,0.00039998,4]
[321280261,1712059848560,-2790.68470363,0.00039998,4]
[321280262,1712059848570,-311.83459824,0.00039998,4]
[321280263,1712059848578,-3484.86132079,0.00039998,4]
[321280264,1712059848588,-251.19365109,0.00039998,4]
[321280265,1712059848597,-155.12565178,0.00039998,4]
[321280266,1712059848605,-155.12409928,0.00039998,4]
[321280267,1712059848614,-164.68022027,0.00039998,4]
[321280268,1712059848624,-223.62722394,0.00039998,4]
[321280269,1712059848633,-3004.77517732,0.00039998,4]
[321280270,1712059848642,-497.79942906,0.00039998,7]
[321280271,1712059848651,-979.8867209,0.00039998,2]
[321280272,1712059848660,-156.47118637,0.00039998,4]
[321280273,1712059848670,-439.10339985,0.00039998,4]
[321280274,1712059848679,-160.0,0.00039999,30]
[321280275,1712059848688,-182.05212322,0.00039999,30]
[321280276,1712059848697,-185.49913499,0.00039999,4]
[321280277,1712059848707,-26894.56950374,0.0004,3]
[321280278,1712059848716,-19622.72904808,0.0004,5]
[321280283,1712060118552,200.0,0.0001,7]
[321280284,1712060246897,-400.0,0.0004,120]
[321280430,1712061032236,-687.64045964,0.00028023,2]
[321280432,1712061032246,-1129.63467922,0.00028024,2]
[321280434,1712061032256,-155.12720431,0.00028024,2]
[321280437,1712061032267,-276.44319995,0.00028025,2]
[321280456,1712061032384,-155.12720431,0.00028026,2]
[321280458,1712061032394,-155.12720431,0.00028027,2]
[321280460,1712061032403,-1960.01777038,0.00028027,2]
[321280462,1712061032413,-2782.04991278,0.00028038,2]
[321280464,1712061032422,-799.98073532,0.00028075,2]
[321280466,1712061032431,-736.9491096,0.00028188,2]
[321280468,1712061032440,-1685.778882,0.00028332,2]
[321280470,1712061032449,-168.62303,0.00031764,2]
[321280472,1712061032458,-24900.0,0.00032049,2]
[321280474,1712061032467,-250.0,0.00032636,2]
[321280476,1712061032476,-174.507178,0.00034357,2]
[321280478,1712061032485,-210.36588987,0.000346,2]
[321280480,1712061032494,-210.36588986,0.000346,2]
[321280482,1712061032503,-151.12543411,0.00035713,2]
[321280484,1712061032512,-302.25086822,0.00036313,4]
[321280486,1712061032521,-604.50173644,0.00036923,7]
[321280488,1712061032531,-1209.00347288,0.00037858,30]
[321280490,1712061032544,-533.6854995,0.000379,2]
[321280492,1712061032555,-670.29682453,0.00037998,4]
[321280494,1712061032563,-503.98283804,0.00038156,2]
[321280496,1712061032574,-503.98283801,0.00038181,2]
[321280498,1712061032583,-503.98283801,0.00038206,2]
[321280500,1712061032592,-503.98283801,0.00038231,2]
[321280502,1712061032601,-503.98283801,0.00038256,2]
[321280504,1712061032611,-155.12875687,0.00038354,4]
[321280506,1712061032620,-155.39569178,0.00038354,4]
[321280508,1712061032630,-1219.39,0.00038355,2]
[321280510,1712061032639,-1219.39,0.00038355,2]
[321280512,1712061032648,-1219.39,0.00038355,2]
[321280514,1712061032656,-1219.39,0.00038355,2]
[321280516,1712061032665,-1219.39,0.00038355,2]
[321280518,1712061032674,-1219.39,0.00038355,2]
[321280520,1712061032683,-1219.39,0.00038355,2]
[321280522,1712061032692,-1219.39,0.00038355,2]
[321280524,1712061032701,-1219.39,0.00038355,2]
[321280526,1712061032712,-500.0,0.00038356,5]
[321280528,1712061032721,-500.0,0.00038356,5]
[321280530,1712061032730,-500.0,0.00038356,5]
[321280532,1712061032739,-500.0,0.00038356,5]
[321280534,1712061032748,-500.0,0.00038356,5]
[321280536,1712061032757,-298.59657959,0.00038356,5]
[321280538,1712061032765,-3810.54,0.00038356,5]
[321280540,1712061032774,-17.63312285,0.00038356,5]
[321280621,1712061038253,-0.12491823,0.00038354,4]
[321280628,1712061038305,-203.54593576,0.00038354,4]
[321280630,1712061038316,-50.25356424,0.00038356,5]
[321280678,1712061040284,-564.19795698,0.00038256,2]
[321280679,1712061040294,-3742.65331291,0.00038356,5]
[321280680,1712061040305,-500.0,0.00038356,5]
[321280681,1712061040314,-500.0,0.00038356,5]
[321280682,1712061040324,-500.0,0.00038356,5]
[321280683,1712061040333,-500.0,0.00038356,5]
[321280684,1712061040343,-273.34873011,0.00038356,5]
[321280736,1712061043298,-155.38043718,0.00038355,4]
[321280738,1712061043308,-226.65126989,0.00038356,5]
[321280740,1712061043318,-322.57554182,0.00038356,5]
[321280742,1712061043330,-177.42445818,0.00038356,5]
[321280744,1712061043339,-500.0,0.00038356,5]
[321280746,1712061043348,-500.0,0.00038356,5]
[321280748,1712061043357,-394.82684635,0.00038356,5]
[321280750,1712061043366,-1185.92,0.00038356,5]
[321280752,1712061043376,-1185.92,0.00038356,5]
[321280754,1712061043384,-500.0,0.00038356,5]
[321280756,1712061043394,-500.0,0.00038356,5]
[321280758,1712061043403,-500.0,0.00038356,5]
[321280760,1712061043412,-503.46976062,0.00038356,5]
[321280762,1712061043421,-500.0,0.00038356,5]
[321280763,1712061043430,-500.0,0.00038356,5]
[321280765,1712061043440,-500.0,0.00038356,5]
[321280767,1712061043448,-500.0,0.00038356,5]
[321280769,1712061043457,-500.0,0.00038356,5]
[321280771,1712061043467,-500.0,0.00038356,5]
[321280773,1712061043476,-500.0,0.00038356,5]
[321280775,1712061043486,-500.0,0.00038356,5]
[321280777,1712061043495,-493.49247115,0.00038356,5]
[321280779,1712061043504,-500.0,0.00038356,5]
[321280781,1712061043513,-500.0,0.00038356,5]
[321280783,1712061043523,-500.0,0.00038356,5]
[321280785,1712061043532,-503.35063252,0.00038356,5]
[321280786,1712061043542,-500.0,0.00038356,5]
[321280788,1712061043556,-517.69438274,0.00038356,5]
[321280790,1712061043566,-500.0,0.00038356,5]
[321280792,1712061043575,-500.0,0.00038356,5]
[321280794,1712061043585,-511.75,0.00038356,5]
[321280796,1712061043595,-511.75,0.00038356,5]
[321280798,1712061043603,-500.0,0.00038356,5]
[321280800,1712061043612,-500.0,0.00038356,5]
[321280802,1712061043622,-500.0,0.00038356,5]
[321280804,1712061043632,-500.0,0.00038356,5]
[321280805,1712061043642,-500.0,0.00038356,5]
[321280806,1712061043652,-503.00096902,0.00038356,5]
[321280807,1712061043662,-505.12695303,0.00038356,5]
[321280808,1712061043671,-500.0,0.00038356,5]
[321280809,1712061043680,-500.0,0.00038356,5]
[321280810,1712061043690,-500.0,0.00038356,5]
[321280811,1712061043699,-153.90095041,0.00038356,5]
[321280812,1712061043708,-500.0,0.00038356,5]
[321280813,1712061043718,-500.0,0.00038356,5]
[321280814,1712061043727,-500.0,0.00038356,5]
[321280815,1712061043737,-500.0,0.00038356,5]
[321280817,1712061043747,-500.0,0.00038356,5]
[321280818,1712061043756,-500.0,0.00038356,5]
[321280819,1712061043766,-500.0,0.00038356,5]
[321280820,1712061043775,-629.36690809,0.00038356,5]
[321280821,1712061043784,-500.0,0.00038356,5]
[321280822,1712061043794,-500.0,0.00038356,5]
[321280823,1712061043803,-505.24648844,0.00038356,5]
[321280824,1712061043814,-500.0,0.00038356,5]
[321280825,1712061043823,-500.0,0.00038356,5]
[321280826,1712061043832,-500.0,0.00038356,5]
[321280827,1712061043905,-500.0,0.00038356,5]
[321280828,1712061043916,-500.0,0.00038356,5]
[321280829,1712061043926,-500.0,0.00038356,5]
[321280830,1712061043937,-500.0,0.00038356,5]
[321280831,1712061043946,-500.0,0.00038356,5]
[321280832,1712061043956,-500.0,0.00038356,5]
[321280833,1712061043965,-500.0,0.00038356,5]
[321280834,1712061043975,-560.83,0.00038356,5]
[321280835,1712061043985,-560.83,0.00038356,5]
[321280836,1712061043994,-500.0,0.00038356,5]
[321280837,1712061044004,-422.02490745,0.00038356,5]
[321280838,1712061044013,-500.0,0.00038356,2]
[321280839,1712061044023,-19.19841645,0.00038356,2]
[321280853,1712061047791,-155.12720431,0.00038355,4]
[321280855,1712061047802,-921.48170893,0.00038355,4]
[321280856,1712061047825,-516.16732969,0.00038356,2]
[321280857,1712061047837,-500.0,0.00038356,5]
[321280858,1712061047848,-500.0,0.00038356,5]
[321280859,1712061047859,-303.50386328,0.00038356,5]
[321280860,1712061047873,-500.0,0.00038356,5]
[321280861,1712061047884,-500.0,0.00038356,5]
[321280862,1712061047894,-1962.79,0.00038356,5]
[321280863,1712061047904,-1962.79,0.00038356,5]
[321280864,1712061047915,-500.0,0.00038356,5]
[321280865,1712061047924,-287.7385359,0.00038356,5]
[321280874,1712061152811,300.0,0.00033977,30]
[321280875,1712061190544,41720.0,0.00033977,30]
[321280877,1712061439450,16632.54101478,0.000341,56]
[321280878,1712061463083,58145.66504766,0.000341,60]
[321281074,1712062243726,-371.42080607,0.00031999,4]
[321281076,1712062243738,-355.790333,0.00032,2]
[321281078,1712062243748,-5274.33677159,0.00033,30]
[321281097,1712062246636,-977.66322841,0.00033,30]
[321281099,1712062246646,-2633.42118861,0.00034097,4]
[321281101,1712062246655,-925.66693327,0.000341,4]
[321281103,1712062246664,-354.23700894,0.000341,4]
[321281105,1712062246673,-509.10973844,0.00035616,2]
[321281107,1712062246682,-4424.90190232,0.00035667,2]
[321281286,1712062734802,210.0,0.00029243,30]
[321281287,1712062762174,315.0,0.00029192,60]
[321281288,1712062799501,315.0,0.00029192,60]
[321281290,1712062971143,2791.45112317,0.0003,120]
[321281294,1712063156640,2791.45112317,0.00033937,120]
[321281297,1712063182156,-276.44319995,0.00028161,2]
[321281298,1712063182182,-1960.01777038,0.00028162,2]
[321281299,1712063182207,-5555.41132495,0.00028162,2]
[321281300,1712063182234,-923.07219606,0.00028163,2]
[321281301,1712063182258,-685.74947039,0.00028163,2]
[321281302,1712063182282,-155.0418613,0.00028163,2]
[321281303,1712063182308,-155.0418613,0.00028164,2]
[321281304,1712063182332,-842.889441,0.00028165,2]
[321281305,1712063182355,-271.29502926,0.00029159,2]
[321281306,1712063182379,-300.0,0.00029159,2]
[321281307,1712063182403,-300.0,0.00029159,2]
[321281308,1712063182427,-300.0,0.00029159,2]
[321281309,1712063182451,-26376.03784541,0.00029159,2]
[321281311,1712063227102,-300.0,0.00028158,2]
[321281312,1712063227124,-225.65139757,0.00028159,2]
[321281313,1712063227145,-206.87506116,0.00028159,2]
[321281314,1712063227165,-2089.20837967,0.0002816,2]
[321281315,1712063227188,-5770.64093527,0.0002816,2]
[321281316,1712063227208,-2757.82665716,0.00028161,2]
[321281317,1712063227229,-1570.39908247,0.00028161,2]
[321281318,1712063227251,-17079.3984867,0.00029159,2]
[321281726,1712063440705,-237.19355533,0.00027059,2]
[321281727,1712063440715,-749.86007494,0.00029159,5]
[321281728,1712063440725,-237.19355533,0.00032059,2]
[321281729,1712063440734,-2633.42118861,0.00034369,4]
[321281730,1712063440743,-1937.68039517,0.00034369,4]
[321281731,1712063440752,-2791.45112317,0.00034369,120]
[321281732,1712063440762,-1041.141652,0.0003437,120]
[321281733,1712063440771,-143.36473302,0.0003469,2]
[321281949,1712063443776,-256.63526698,0.0003469,2]
[321281951,1712063443785,-814.42437446,0.0003469,4]
[321282023,1712063447137,-6938.83599922,0.0003469,4]
[321282025,1712063447147,-24900.0,0.00034691,2]
[321282026,1712063447157,-1000.0,0.000356,20]
[321282027,1712063447168,-2961.16400078,0.00035651,4]
[321282028,1712063447388,-0.48468706,0.00035651,4]
[321282029,1712063447400,-2982.30410652,0.00035651,4]
[321282030,1712063447410,-174.507178,0.00035734,2]
[321282031,1712063447420,-155.25508547,0.00036336,2]
[321282032,1712063447429,-918.5180927,0.00036436,4]
[321282033,1712063447439,-237.19355533,0.00037059,2]
[321282034,1712063447448,-160.0,0.00037208,2]
[321282035,1712063447524,-155.25508545,0.00037296,2]
[321282036,1712063447534,-404.2818141,0.00037534,2]
[321282037,1712063447544,-150.395,0.00037941,2]
[321282038,1712063447556,-163.0,0.00038,2]
[321282039,1712063447565,-227.9999,0.00038,2]
[321282040,1712063447574,-792.29018243,0.00038256,2]
[321282043,1712063528053,231.71325716,0.00019,2]
[321282050,1712063550418,384.19491367,0.00019,2]
[321282054,1712063568457,384.19491367,0.00019,2]
[321282056,1712063586416,336.90434497,0.00019,2]
[321282089,1712064049102,161.91887004,0.00028919,4]
[321282090,1712064131734,749.86007494,0.00028919,5]
[321282091,1712064149650,749.86007494,0.00028919,5]
[321282092,1712064165909,238.41977518,0.00028919,5]
[321282093,1712064267280,161.91887004,0.00026897,3]
[321282107,1712064470439,780.856239,0.00030137,120]
[321282108,1712064479838,-326.8183876,0.00026965,2]
[321282109,1712064479868,-866.66281242,0.00026965,2]
[321282110,1712064479899,-406.86199423,0.00026966,2]
[321282111,1712064479931,-155.00155002,0.00026966,2]
[321282112,1712064479961,-561.53753121,0.00026966,2]
[321282113,1712064479992,-934.14841258,0.00026967,2]
[321282114,1712064480023,-276.44319995,0.00026968,2]
[321282115,1712064480056,-2084.38029146,0.00026968,2]
[321282116,1712064480168,-3232.25585439,0.00026968,2]
[321282117,1712064480199,-1960.01777038,0.00026969,2]
[321282118,1712064480220,-326.8183876,0.00026969,2]
[321282119,1712064480233,-360.82207204,0.00026969,2]
[321282120,1712064480242,-155.00155002,0.00026969,2]
[321282121,1712064480251,-350.83919036,0.0002697,2]
[321282122,1712064480267,-406.86199423,0.0002697,2]
[321282123,1712064480279,-155.00155002,0.0002697,2]
[321282124,1712064480291,-561.53753121,0.0002697,2]
[321282125,1712064480302,-387.65464447,0.0002697,2]
[321282126,1712064480312,-300.0,0.00026973,2]
[321282127,1712064480320,-246.49376811,0.00026973,2]
[321282128,1712064480336,-53.50623189,0.00026973,2]
[321282129,1712064480346,-222.93696806,0.00026974,2]
[321282130,1712064480357,-2084.38029146,0.00026974,2]
[321282131,1712064480373,-3232.25585439,0.00026974,2]
[321282132,1712064480395,-1960.01777038,0.00026974,2]
[321282133,1712064480427,-311.74439152,0.00026974,2]
[321282229,1712064634115,-155.00310006,0.00025974,2]
[321282230,1712064634124,-155.00310006,0.00025974,2]
[321282232,1712064634134,-2757.82665716,0.00025975,2]
[321282233,1712064634143,-185.17273563,0.00025976,2]
[321282234,1712064634152,-281.74620294,0.00025976,2]
[321282235,1712064634162,-782.21993348,0.00025976,2]
[321282236,1712064634172,-237.59747688,0.00025978,2]
[321282237,1712064634181,-390.70213506,0.00025978,2]
[321282238,1712064634191,-300.0,0.00025978,2]
[321282239,1712064634201,-300.0,0.00025978,2]
[321282240,1712064634211,-300.0,0.00025978,2]
[321282241,1712064634243,-6583.16690046,0.00025979,2]
[321282305,1712064639636,-1304.74919041,0.00025973,2]
[321282306,1712064639646,-1944.78669163,0.00025979,2]
[321282332,1712064643963,-757.39724904,0.00025979,2]
[321282335,1712064643994,-6349.6742432,0.00025979,2]
[321282337,1712064644021,-1877.1140369,0.00025979,2]
[321282338,1712064644067,-2170.39624317,0.00025979,2]